[Event "CZE-ch U10 Open 2023"]
[Site "Teplice"]
[Date "2023.03.18"]
[Round "9.3"]
[White "Velim, Vojtech"]
[Black "Trejbal, Jindrich"]
[Result "1-0"]
[ECO "A06"]
[WhiteElo "1369"]
[BlackElo "1937"]
[Annotator "TA"]
[PlyCount "111"]
[EventDate "2023.03.09"]
[EventType "swiss"]
[EventCountry "CZE"]
[SourceTitle "playchess.com"]
[Source "ChessBase"]
[SourceQuality "1"]
[TimeControl "40/5400+30:1800+30"]

{[%evp 15,111,18,22,11,26,-145,-136,-137,-140,-147,-137,-151,-139,-126,-124,-126,-117,-209,-178,-257,-243,-241,345,345,337,343,343,318,353,346,445,407,679,669,689,678,850,850,834,827,921,914,835,789,681,654,630,628,585,576,1461,1446,1428,1428,1423,1399,1321,1261,1177,1079,1004,940,29959,29961,29956,29960,29958,29958,29969,29970,29970,29970,29971,29972,29973,29974,29974,29975,29975,29976,29976,29976,29978,29977,29977,29978,29979,29978,29979,29979,29979,29980,29979,29979,29983,29984,29984,29985]} 1. Nf3 {[%emt 0:01:21]} d5 {[%emt 0:00:36]} 2. e3 {[%emt 0:00:44]} Nf6 {[%emt 0:01:08][%cal Bg8f6,Bf6d5,Bd5b4,Bb4d3][%mdl 32]} 3. c4 {[%emt 0:01:17]} e6 4. Nc3 {[%emt 0:01:16]} b6 {[%emt 0:04:36]} 5. cxd5 {[%emt 0:06:19]} Nxd5 {[%emt 0:00:59]} 6. d4 {[%emt 0:00:51]} Bb7 {[%emt 0:01:53]} 7. Bd3 {[%emt 0:01:01]} Be7 {[%emt 0:07:57]} 8. O-O {[%emt 0:05:50]} O-O {[%emt 0:01:45]} 9. e4 {[%emt 0:01:15] E14: Queen's Indian: Classical Variation (4 e3).} Nb4 {[%emt 0:02:51] [#] White must now prevent ...Nxd3.} 10. a3 $146 {[%emt 0:04:09]} ({White should try} 10. Bb5 $11) ({Predecessor:} 10. Bc4 c5 11. dxc5 Bxc5 12. Qe2 Nd7 13. Rd1 Qc8 14. a3 Nc6 15. b4 Be7 16. Bf4 Bf6 {1-0 Kobo,O (2508)-Erenberg,A (2393) Jerusalem Japhet Memorial op 4th 2018 (5)}) 10... Nxd3 $17 {[%emt 0:01:34][%mdl 64] Remove Defender} 11. Qxd3 {[%emt 0:00:13] Black is clearly better.} Ba6 {[%emt 0:02:10][%mdl 64] Skewer, Deflection. This pair of bishops is nice.} 12. Qc2 {[%emt 0:04:47]} Bxf1 {[%emt 0:00:40]} 13. Kxf1 {[%emt 0:00:09]} c5 {[%emt 0:06:19]} 14. d5 {[%emt 0:02:48]} exd5 {[%emt 0:05:41]} 15. Nxd5 {[%emt 0:00:43]} Nc6 {[%emt 0:05:48]} 16. b4 {[%emt 0:06:48]} Rc8 $19 {[%emt 0:08:50][%cal Rc5b4]} 17. Bd2 {[%emt 0:03:05]} (17. Bb2 {is a better defense.}) 17... cxb4 {[%emt 0:02:01]} 18. axb4 {[%emt 0:00:52] [#]} Nxb4 $4 {[%emt 0:02:21][%mdl 8192] [#]} 19. Qxc8 $3 $18 {[%emt 0:00:32][%mdl 576] Decoy. Black is now going downhill.} Nxd5 {[%emt 0:02:28]} 20. Qxd8 {[%emt 0:00:24]} Rxd8 {[%emt 0:00:28]} 21. exd5 {[%emt 0:00:16]} a5 {[%emt 0:00:42]} 22. Be3 {[%emt 0:00:50]} Rb8 {[%emt 0:01:31]} 23. Rb1 {[%emt 0:01:47]} Bd8 {[%emt 0:02:19]} (23... a4 $142 24. Rxb6 Rxb6 25. Bxb6 a3) 24. Ne5 {[%emt 0:01:15]} Rb7 {[%emt 0:06:20]} 25. d6 {[%emt 0:04:29]} f6 {[%emt 0:01:16]} 26. Nc6 {[%emt 0:00:13]} Rd7 {[%emt 0:00:26]} 27. Nxd8 {[%emt 0:00:42]} Rxd8 {[%emt 0:00:06]} 28. Rxb6 {[%emt 0:00:27][%mdl 4096] Endgame KRB-KR} Kf7 {[%emt 0:00:33]} 29. Ra6 {[%emt 0:02:09]} Ke6 {[%emt 0:01:21]} 30. Bf4 {[%emt 0:01:06]} g5 {[%emt 0:00:39]} 31. Bg3 {[%emt 0:00:51]} f5 {[%emt 0:00:24]} 32. d7+ {[%emt 0:03:55]} Kxd7 {[%emt 0:00:18]} 33. Rd6+ {[%emt 0:00:07]} Ke7 {[%emt 0:00:16]} 34. Rxd8 {[%emt 0:00:08]} Kxd8 {[%emt 0:00:06] KB-KP} 35. Bd6 {[%emt 0:00:10]} Kd7 {[%emt 0:00:27]} 36. Ba3 {[%emt 0:00:23]} Ke6 {[%emt 0:00:25]} 37. Ke2 {[%emt 0:00:08]} Ke5 {[%emt 0:00:57]} 38. Kd3 {[%emt 0:03:35]} h5 {[%emt 0:05:15]} 39. g3 {[%emt 0:02:43] White mates.} f4 {[%emt 0:03:41]} 40. h4 {[%emt 0:04:58]} Kf5 {[%emt 0:01:15]} 41. hxg5 {[%emt 0:32:31]} fxg3 {[%emt 0:32:13]} 42. fxg3 {[%emt 0:00:58]} Kxg5 {[%emt 0:00:11] [#] KB-KPP} 43. Be7+ $1 {[%emt 0:01:07]} Kg4 {[%emt 0:01:03] [#]} 44. Bh4 $1 {[%emt 0:00:09]} ({Inferior is} 44. Bd6 h4 45. gxh4 Kxh4 $11) 44... Kf3 {[%emt 0:00:35]} 45. Kc4 {[%emt 0:00:44]} Ke4 {[%emt 0:00:10]} 46. Kb5 {[%emt 0:00:08]} Kd5 {[%emt 0:00:12]} 47. Kxa5 {[%emt 0:00:19] KB-KP} Kc5 {[%emt 0:00:16]} 48. Bg5 {[%emt 0:00:59]} Kd4 {[%emt 0:00:32]} 49. Kb4 {[%emt 0:00:31]} Kd5 {[%emt 0:00:31]} 50. Kb5 {[%emt 0:01:39]} Ke4 {[%emt 0:03:04]} 51. Kc4 {[%emt 0:03:36]} Kf5 {[%emt 0:00:22]} 52. Bh4 {[%emt 0:00:21]} Ke4 {[%emt 0:00:17]} 53. Kc5 {[%emt 0:00:17]} Ke5 {[%emt 0:00:29]} 54. Kc6 {[%emt 0:00:23]} Kf5 {[%emt 0:01:00]} 55. Kd5 {[%emt 0:00:15]} Kg6 {[%emt 0:00:46]} 56. Ke6 {[%emt 0:00:35] Artfully played by Velim.   Weighted Error Value: White=0.39/Black=0.62} 1-0

[Event "CZE-ch U10 Open 2023"]
[Site "Teplice"]
[Date "2023.03.18"]
[Round "9.4"]
[White "Lang, Simon"]
[Black "Seidl, Jan"]
[Result "*"]
[ECO "B40"]
[WhiteElo "1974"]
[BlackElo "2025"]
[Annotator "TA"]
[PlyCount "31"]
[EventDate "2023.03.09"]
[EventType "swiss"]
[EventCountry "CZE"]
[SourceTitle "playchess.com"]
[Source "ChessBase"]
[SourceQuality "1"]
[TimeControl "40/5400+30:1800+30"]

{[%evp 14,31,14,12,8,21,31,0,0,-4,-2,-7,0,0,6,-7,15,0,0,0]} 1. e4 {[%emt 0:00:03]} c5 {[%emt 0:00:03]} 2. Nf3 {[%emt 0:00:05]} e6 {[%emt 0:00:04]} 3. Nc3 {[%emt 0:00:36]} Nc6 {[%emt 0:00:42]} 4. Bb5 {[%emt 0:00:40]} d6 {[%emt 0:01:22]} 5. d4 {[%emt 0:00:29]} cxd4 {[%emt 0:01:13]} 6. Nxd4 {[%emt 0:00:14]} Bd7 {[%emt 0:00:27]} 7. O-O {[%emt 0:00:50]} Nf6 {[%emt 0:01:25]} 8. Be3 {[%emt 0:02:45]} Be7 {[%emt 0:00:34] B56: Classical Sicilian: Unusual Lines.} 9. f4 {[%emt 0:02:21]} O-O {[%emt 0:01:24][%cal Of6e4]} 10. Qf3 {[%emt 0:04:17]} Nxd4 {[%emt 0:00:31] The position is equal.} 11. Bxd4 {[%emt 0:00:20]} Bxb5 {[%emt 0:00:10]} 12. Nxb5 {[%emt 0:00:16] [#]} a6 $146 {[%emt 0:00:38]} ({Predecessor:} 12... d5 13. exd5 Qxd5 14. Qxd5 Nxd5 15. Nxa7 Nb4 16. Rf2 Rfd8 17. Bb6 Rd7 18. c4 Bd8 19. Bxd8 Rdxd8 {0-1 O'Brien,A (1716)-Gomez Galan Arense,J (2012) CFriend CP.2005.P.00024}) 13. Nc3 {[%emt 0:00:25]} Qc7 {[%emt 0:02:11]} 14. Rae1 {[%emt 0:02:22]} e5 {[%emt 0:00:53]} 15. Be3 {[%emt 0:02:16]} b5 {[%emt 0:04:49]} 16. fxe5 {[%emt 0:01:13] A rather calm draw.   Weighted Error Value: White=0.11 (very precise) /Black=0.03 (flawless)} *

[Event "CZE-ch U10 Open 2023"]
[Site "Teplice"]
[Date "2023.03.18"]
[Round "9.4"]
[White "Kozusnik, Jan"]
[Black "Kroulik, Stepan"]
[Result "1-0"]
[ECO "B40"]
[WhiteElo "1286"]
[BlackElo "1228"]
[Annotator "NA RC COMBH"]
[PlyCount "151"]
[EventDate "2023.03.09"]
[EventType "swiss"]
[EventCountry "CZE"]
[SourceTitle "playchess.com"]
[Source "ChessBase"]
[SourceQuality "1"]
[TimeControl "40/5400+30:1800+30"]

1. e4 {[%emt 0:00:03]} c5 {[%emt 0:00:03]} 2. Nf3 {[%emt 0:00:05]} e6 {[%emt 0:00:04]} 3. Nc3 {[%emt 0:00:36]} Nc6 {[%emt 0:00:42]} 4. Bb5 {[%emt 0:00:40]} d6 {[%emt 0:01:22]} 5. d4 {[%emt 0:00:29]} cxd4 {[%emt 0:01:13]} 6. Nxd4 {[%emt 0:00:14]} Bd7 {[%emt 0:00:27]} 7. O-O {[%emt 0:00:50]} Nf6 {[%emt 0:01:25]} 8. Be3 {[%emt 0:02:45]} Be7 {[%emt 0:00:34]} 9. f4 {[%emt 0:02:21]} O-O {[%emt 0:01:24]} 10. Qf3 {[%emt 0:04:17]} Nxd4 {[%emt 0:00:31]} 11. Bxd4 {[%emt 0:00:20]} Bxb5 {[%emt 0:00:10]} 12. Nxb5 {[%emt 0:00:16]} a6 {[%emt 0:00:38]} 13. Nc3 {[%emt 0:00:25]} Qc7 {[%emt 0:02:11]} 14. Rae1 {[%emt 0:02:22]} e5 $11 {[%emt 0:00:53]} 15. Be3 {[%emt 0:02:16]} b5 {[%emt 0:04:49]} 16. fxe5 {[%emt 0:01:13]} dxe5 {[%emt 0:00:33]} 17. Bg5 {[%emt 0:01:08]} b4 {[%emt 0:01:03]} 18. Bxf6 {[%emt 0:00:25]} Bc5+ {[%emt 0:06:16]} 19. Kh1 {[%emt 0:01:06]} bxc3 {[%emt 0:02:01]} 20. Qg3 {[%emt 0:01:09]} g6 {[%emt 0:01:20]} 21. Qh4 {[%emt 0:01:14]} h5 {[%emt 0:08:22]} 22. Qg5 {[%emt 0:00:59]} Kh7 {[%emt 0:00:39]} 23. Bxe5 {[%emt 0:00:36]} Be7 24. Qf4 {[%emt 0:01:47]} Qa5 {[%emt 0:09:40]} 25. Bxc3 {[%emt 0:00:26]} Qg5 {[%emt 0:03:10]} 26. Qxg5 {[%emt 0:01:05]} Bxg5 {[%emt 0:00:09]} 27. h3 {[%emt 0:00:30]} Bh6 {[%emt 0:01:36]} 28. Rf3 {[%emt 0:00:37]} Kg8 {[%emt 0:01:57]} 29. Ref1 {[%emt 0:01:08]} Ra7 {[%emt 0:03:11]} 30. Rd1 {[%emt 0:01:36]} Re8 {[%emt 0:00:44]} 31. e5 {[%emt 0:00:45]} Bg7 {[%emt 0:00:38]} 32. Re1 {[%emt 0:00:42]} Rae7 {[%emt 0:02:20]} 33. Rd3 {[%emt 0:01:56]} Re6 {[%emt 0:05:30]} 34. Rd6 {[%emt 0:01:54]} a5 {[%emt 0:10:37]} 35. Rxe6 {[%emt 0:03:34]} Rxe6 {[%emt 0:01:17]} 36. Bxa5 {[%emt 0:00:25]} Ra6 {[%emt 0:01:08]} 37. b4 {[%emt 0:01:05]} Re6 {[%emt 0:01:47]} 38. Bc7 {[%emt 0:02:06]} Rc6 {[%emt 0:00:15]} 39. Bd6 {[%emt 0:00:16]} Rxc2 {[%emt 0:00:15]} 40. a4 {[%emt 0:00:13]} Bf8 {[%emt 0:00:27]} 41. Rd1 {[%emt 0:31:06]} Ra2 {[%emt 0:31:18]} 42. a5 {[%emt 0:00:45]} Ra4 {[%emt 0:00:42]} 43. Rb1 {[%emt 0:01:30]} Bxd6 {[%emt 0:00:40]} 44. exd6 {[%emt 0:00:16]} Kf8 {[%emt 0:00:10]} 45. Kg1 {[%emt 0:00:45]} Ke8 {[%emt 0:00:03]} 46. Kf2 {[%emt 0:00:18]} Kd7 {[%emt 0:00:08]} 47. Ke3 {[%emt 0:00:32]} Kxd6 {[%emt 0:00:08]} 48. Ke4 {[%emt 0:06:02]} Ra2 {[%emt 0:01:28]} 49. Kf3 {[%emt 0:01:38]} Ke5 {[%emt 0:01:28]} 50. Re1+ {[%emt 0:07:28]} Kf5 {[%emt 0:01:49]} 51. Re7 {[%emt 0:09:22]} f6 {[%emt 0:02:21]} 52. Rb7 {[%emt 0:00:46]} Ra3+ {[%emt 0:01:01]} 53. Kf2 {[%emt 0:00:46]} Kf4 {[%emt 0:00:34]} 54. Rc7 {[%emt 0:10:54]} Ra2+ {[%emt 0:02:49]} 55. Kg1 {[%emt 0:00:54]} f5 {[%emt 0:01:41]} 56. Rc3 {[%emt 0:02:23]} Ra1+ {[%emt 0:01:22]} 57. Kh2 {[%emt 0:00:24]} Ra2 {[%emt 0:00:19]} 58. Rg3 {[%emt 0:01:15]} g5 {[%emt 0:01:01]} 59. Rb3 {[%emt 0:00:49]} g4 {[%emt 0:00:24]} 60. b5 {[%emt 0:02:49]} Rxa5 {[%emt 0:00:56]} 61. b6 {[%emt 0:00:43]} Ra8 {[%emt 0:00:28]} 62. b7 {[%emt 0:00:16]} Rb8 {[%emt 0:00:09]} 63. hxg4 {[%emt 0:01:23]} hxg4 {[%emt 0:00:26]} 64. Rb4+ Ke3 {[%emt 0:00:40]} 65. Kg3 {[%emt 0:00:54]} f4+ {[%emt 0:01:06]} 66. Kxg4 {[%emt 0:00:37]} Rg8+ {[%emt 0:00:47]} 67. Kf5 {[%emt 0:00:31]} Rb8 {[%emt 0:00:34]} 68. Ke5 {[%emt 0:00:31]} f3 {[%emt 0:00:59]} 69. gxf3 {[%emt 0:00:18]} Kxf3 {[%emt 0:00:15]} 70. Kd6 {[%emt 0:00:09]} Rh8 {[%emt 0:00:42]} 71. b8=Q {[%emt 0:00:16]} Rh6+ {[%emt 0:00:17]} 72. Kc5 {[%emt 0:00:19]} Rh5+ {[%emt 0:00:11]} 73. Kb6 {[%emt 0:00:14]} Rh6+ {[%emt 0:00:16]} 74. Ka5 {[%emt 0:00:07]} Rh5+ {[%emt 0:00:14]} 75. Rb5 {[%emt 0:00:07]} Rh1 {[%emt 0:00:21]} 76. Qa8+ {[%emt 0:00:11]} 1-0

[Event "CZE-ch U10 Open 2023"]
[Site "Teplice"]
[Date "2023.03.18"]
[Round "9.5"]
[White "Dolensky, Filip"]
[Black "Pelc, Adam"]
[Result "*"]
[WhiteElo "2108"]
[BlackElo "1871"]
[Annotator "TA"]
[PlyCount "28"]
[EventDate "2023.03.09"]
[EventType "swiss"]
[EventCountry "CZE"]
[SourceTitle "playchess.com"]
[Source "ChessBase"]
[SourceQuality "1"]
[TimeControl "40/5400+30:1800+30"]

{[%evp 13,28,0,-7,-12,0,-6,0,0,0,-7,27,21,113,67,64,63,162]} 1. e4 {[%emt 0:00:03]} g6 {[%emt 0:00:04]} 2. d4 {[%emt 0:00:34]} Bg7 {[%emt 0:00:09]} 3. Nf3 {[%emt 0:00:41]} c5 {[%emt 0:02:18]} 4. dxc5 {[%emt 0:01:55]} Qa5+ {[%emt 0:00:15]} 5. c3 {[%emt 0:00:49]} Qxc5 {[%emt 0:01:12]} 6. Be3 {[%emt 0:00:10]} Qc7 {[%emt 0:00:05]} 7. Nbd2 {[%emt 0:00:52]} Nf6 {[%emt 0:00:29]} 8. Bd3 {[%emt 0:00:25] [#] B27: Sicilian: 2 Nf3, unusual Black 2nd moves.} b6 $146 {[%emt 0:00:11]} ({Predecessor:} 8... Nc6 9. O-O d5 10. Re1 O-O 11. Bg5 dxe4 12. Nxe4 Nxe4 13. Bxe4 e5 14. Qc1 Be6 15. Bh6 f6 16. Bxg7 Kxg7 {½-½ Bryant,R (1800)-Bellers,C (1918) ENG Chessable-ch Seniors 65+ 2022 (5)}) 9. O-O {[%emt 0:01:33]} Bb7 {[%emt 0:00:06]} 10. Qe2 {[%emt 0:01:16] The position is equal.} O-O {[%emt 0:00:20]} 11. Rac1 {[%emt 0:04:51]} d5 {[%emt 0:04:49][%cal Rd5e4]} 12. e5 {[%emt 0:01:00]} Ng4 {[%emt 0:01:20]} (12... Nfd7 $11) 13. Bd4 {[%emt 0:00:45]} (13. Bf4 $16) 13... Nc6 $14 {[%emt 0:01:15]} 14. Rfe1 {[%emt 0:02:52]} f6 {[%emt 0:04:21] Weighted Error Value: White=0.09 (flawless) /Black=0.31} (14... Nxd4 $14 15. cxd4 Qd8) *

[Event "CZE-ch U10 Open 2023"]
[Site "Teplice"]
[Date "2023.03.18"]
[Round "9.5"]
[White "Fadrny, Jachym"]
[Black "Gernert, Tomas"]
[Result "1-0"]
[ECO "B06"]
[WhiteElo "1279"]
[BlackElo "1362"]
[Annotator "NA RC COMBH"]
[PlyCount "77"]
[EventDate "2023.03.09"]
[EventType "swiss"]
[EventCountry "CZE"]
[SourceTitle "playchess.com"]
[Source "ChessBase"]
[SourceQuality "1"]
[TimeControl "40/5400+30:1800+30"]

1. e4 {[%emt 0:00:03]} g6 {[%emt 0:00:04]} 2. d4 {[%emt 0:00:34]} Bg7 {[%emt 0:00:09]} 3. Nf3 {[%emt 0:00:41]} c5 {[%emt 0:02:18]} 4. dxc5 {[%emt 0:01:55]} Qa5+ {[%emt 0:00:15]} 5. c3 {[%emt 0:00:49]} Qxc5 {[%emt 0:01:12]} 6. Be3 {[%emt 0:00:10]} Qc7 {[%emt 0:00:05]} 7. Nbd2 {[%emt 0:00:52]} Nf6 {[%emt 0:00:29]} 8. Bd3 {[%emt 0:00:25]} b6 {[%emt 0:00:11]} 9. O-O {[%emt 0:01:33]} Bb7 {[%emt 0:00:06]} 10. Qe2 {[%emt 0:01:16]} O-O {[%emt 0:00:20]} 11. Rac1 {[%emt 0:04:51]} d5 {[%emt 0:04:49]} 12. e5 {[%emt 0:01:00]} Ng4 {[%emt 0:01:20]} 13. Bd4 {[%emt 0:00:45]} Nc6 $14 {[%emt 0:01:15]} 14. Rfe1 {[%emt 0:02:52]} f6 {[%emt 0:04:21]} 15. e6 {[%emt 0:02:54]} Nce5 {[%emt 0:09:49]} 16. h3 {[%emt 0:02:41]} Nxf3+ {[%emt 0:02:13]} 17. Nxf3 {[%emt 0:01:27]} Nh6 {[%emt 0:02:32]} 18. Bc2 {[%emt 0:07:30]} Kh8 {[%emt 0:04:12]} 19. Qd2 {[%emt 0:02:01]} Ng8 {[%emt 0:00:50]} 20. Be3 {[%emt 0:00:20]} Bc8 {[%emt 0:02:46]} 21. Qxd5 {[%emt 0:00:56]} Bb7 {[%emt 0:03:49]} 22. Qd1 {[%emt 0:01:01]} Rfd8 {[%emt 0:04:26]} 23. Bd4 {[%emt 0:06:00]} f5 {[%emt 0:04:34]} 24. Ng5 {[%emt 0:02:07]} Nh6 {[%emt 0:01:09]} 25. Bxg7+ {[%emt 0:10:00]} Kxg7 {[%emt 0:00:13]} 26. Qe2 {[%emt 0:00:51]} Rd6 {[%emt 0:04:14]} 27. Qe5+ {[%emt 0:01:06]} Kg8 {[%emt 0:01:11]} 28. Nf7 {[%emt 0:02:14]} Nxf7 {[%emt 0:02:08]} 29. exf7+ {[%emt 0:00:13]} Kxf7 {[%emt 0:00:29]} 30. Bb3+ {[%emt 0:00:07]} Ke8 {[%emt 0:00:11]} 31. Qh8+ {[%emt 0:01:23]} Kd7 {[%emt 0:00:09]} 32. Qxh7 {[%emt 0:00:16]} Re8 {[%emt 0:00:50]} 33. Bf7 {[%emt 0:00:14]} f4 {[%emt 0:19:02]} 34. Bxe8+ {[%emt 0:00:35]} Kxe8 {[%emt 0:00:04]} 35. Rcd1 {[%emt 0:02:31]} f3 {[%emt 0:02:50]} 36. Qg8+ {[%emt 0:06:50]} Kd7 {[%emt 0:00:17]} 37. Qe6+ {[%emt 0:02:04]} Kc6 {[%emt 0:00:36]} 38. Qc4+ {[%emt 0:00:28]} Kd7 {[%emt 0:00:20]} 39. Rxe7+ {[%emt 0:00:17]} 1-0

[Event "CZE-ch U10 Open 2023"]
[Site "Teplice"]
[Date "2023.03.18"]
[Round "9.6"]
[White "Hladky, Tadeas"]
[Black "Werner, Hong Quan Dan"]
[Result "*"]
[ECO "B20"]
[WhiteElo "1973"]
[BlackElo "2085"]
[Annotator "TA"]
[PlyCount "31"]
[EventDate "2023.03.09"]
[EventType "swiss"]
[EventCountry "CZE"]
[SourceTitle "playchess.com"]
[Source "ChessBase"]
[SourceQuality "1"]
[TimeControl "40/5400+30:1800+30"]

{[%evp 10,31,3,4,29,14,8,0,125,141,128,136,131,120,133,102,111,81,91,83,88,83,158,150]} 1. e4 {[%emt 0:00:03]} c5 {[%emt 0:00:05]} 2. d3 {[%emt 0:00:15]} Nc6 {[%emt 0:00:22]} 3. g3 {[%emt 0:00:10]} g6 {[%emt 0:00:35]} 4. Bg2 {[%emt 0:00:12]} Bg7 {[%emt 0:00:27]} 5. f4 {[%emt 0:00:11]} d6 {[%emt 0:00:50]} 6. Nf3 {[%emt 0:00:10]} Qb6 {[%emt 0:00:47] 6...Nf6 gains popularity. B20: Sicilian: Unusual White 2nd moves.} 7. Nc3 {[%emt 0:00:53]} e6 {[%emt 0:01:03]} 8. O-O {[%emt 0:00:34][%cal Oe4e5] [#]} c4+ $146 {[%emt 0:00:44]} (8... Nge7 $11) ({Predecessor:} 8... Nge7 9. Kh1 O-O 10. Qe1 Nd4 11. Nxd4 cxd4 12. Ne2 Bd7 13. c3 dxc3 14. bxc3 Rac8 {0-1 Boese,C (1632)-Fisch,G (1706) Mittelfranken-chTB2a 1516 2015 (3.5)}) 9. Kh1 $16 {[%emt 0:00:22]} cxd3 {[%emt 0:00:17]} 10. Qxd3 {[%emt 0:00:21] Nb5 is the strong threat.} Nge7 {[%emt 0:02:53][%cal Od6d5]} 11. Qxd6 {[%emt 0:03:44]} O-O {[%emt 0:00:24]} 12. Qd3 {[%emt 0:10:51]} Rd8 {[%emt 0:01:31]} 13. Qb5 {[%emt 0:03:18]} Bxc3 {[%emt 0:01:29]} 14. Qxb6 {[%emt 0:00:17]} axb6 {[%emt 0:00:23]} 15. bxc3 {[%emt 0:00:03]} f6 {[%emt 0:01:09]} (15... b5 $142) 16. Be3 {[%emt 0:01:02] Black did not feel at home in the position after the opening.   Weighted Error Value: White=0.15 (very precise) /Black=0.30} *

[Event "CZE-ch U10 Open 2023"]
[Site "Teplice"]
[Date "2023.03.18"]
[Round "9.7"]
[White "Kupka, Frantisek"]
[Black "Moravec, Rene"]
[Result "0-1"]
[ECO "B31"]
[WhiteElo "1988"]
[BlackElo "1216"]
[Annotator "TA"]
[PlyCount "112"]
[EventDate "2023.03.09"]
[EventType "swiss"]
[EventCountry "CZE"]
[SourceTitle "playchess.com"]
[Source "ChessBase"]
[SourceQuality "1"]
[TimeControl "40/5400+30:1800+30"]

{[%evp 10,112,37,40,66,41,46,4,64,-81,24,8,18,25,29,-16,-16,-107,4,-47,-44,-70,-43,-55,-40,-38,0,-38,22,-25,-17,-66,-66,-133,-135,-125,-91,-91,-99,-181,-99,-92,-91,-120,-106,-305,-296,-402,-75,-237,-218,-507,-493,-522,-502,-6164,-6156,-6140,-1222,-5189,-5255,-5212,-5181,-4503,-2566,-5473,-5281,-4734,-1645,-5181,-1108,-29971,-29969,-29976,-29977,-29977,-29979,-29982,-29982,-29982,-29983,-29984,-29985,-29985,-29986,-29986,-29987,-29987,-29987,-29987,-29987,-29987,-29988,-29988,-29989,-29989,-29990,-29991,-29992,-29994,-29995,-29996,-29993,-29993,-29993]} 1. e4 {[%emt 0:00:02]} c5 {[%emt 0:01:52]} 2. Nf3 {[%emt 0:00:13]} Nc6 {[%emt 0:01:26]} 3. Bb5 {[%emt 0:00:23]} g6 {[%emt 0:01:17]} 4. O-O {[%emt 0:00:35]} Bg7 {[%emt 0:00:41]} 5. c3 {[%emt 0:00:40]} d6 {[%emt 0:00:29]} 6. d4 {[%emt 0:01:55]} Bd7 {[%emt 0:01:21] B31: Sicilian: 2...Nc6 3 Bb5 g6.} 7. Be3 {[%emt 0:02:38]} Nf6 {[%emt 0:04:29]} 8. Nbd2 {[%emt 0:04:32]} (8. d5 $5 {[%cal Rd5c6]} Ne5 9. Bxd7+ Nexd7 10. Qd3 $11 (10. Nbd2 O-O $11)) 8... O-O {[%emt 0:03:19] [#]} (8... Ng4 $11) 9. h3 $146 {[%emt 0:03:24]} (9. dxc5 $14 Ng4 10. Qe2) ({Predecessor:} 9. dxc5 a6 10. Ba4 dxc5 11. Bxc5 b6 12. Ba3 b5 13. Bc2 a5 14. b3 Qc7 15. Bc5 {1-0 Basilico,D (1632)-Rossini,L (1440) Bresso op 6th 2007 (6)}) 9... cxd4 {[%emt 0:02:17]} (9... Nxd4 $1 $17 10. Bxd7 Nxf3+ 11. Nxf3 Qxd7) 10. cxd4 $11 {[%emt 0:01:26]} d5 {[%emt 0:01:22]} 11. e5 {[%emt 0:03:55]} Ne4 {[%emt 0:03:25]} 12. Nxe4 {[%emt 0:01:37]} dxe4 {[%emt 0:00:30]} 13. Nh2 {[%emt 0:02:14]} (13. Ng5 $11) 13... a6 {[%emt 0:01:54]} (13... Nxe5 $1 $17 14. Be2 Nc6) 14. Bxc6 {[%emt 0:03:17]} (14. Bc4 $11) 14... Bxc6 $15 {[%emt 0:00:17]} 15. Rc1 {[%emt 0:02:49]} Rc8 {[%emt 0:00:43]} 16. Re1 {[%emt 0:02:36]} f6 {[%emt 0:03:23]} 17. Qb3+ {[%emt 0:03:43]} Kh8 {[%emt 0:00:21]} 18. Red1 {[%emt 0:01:16]} (18. Rc5 $5 {[%cal Re1c1]}) 18... Qd7 {[%emt 0:02:27]} (18... Qd5 $15) 19. Qb4 {[%emt 0:05:13]} (19. d5 $142 $1 Ba4 20. e6) 19... Bb5 {[%emt 0:02:13]} 20. Qd2 {[%emt 0:02:17]} (20. b3 $11 {is superior.}) 20... fxe5 {[%emt 0:02:58] Black is more active.} 21. dxe5 {[%emt 0:02:41]} (21. d5 $15) 21... Qxd2 $17 {[%emt 0:00:32]} 22. Bxd2 {[%emt 0:00:33] White is weak on the light squares} Rxc1 {[%emt 0:01:16]} 23. Rxc1 {[%emt 0:02:16]} Bxe5 {[%emt 0:01:21]} 24. Bh6 {[%emt 0:01:45]} (24. b3 $17) 24... Bg7 {[%emt 0:01:11]} (24... Bxb2 $19 25. Rc7 Rd8) 25. Bxg7+ {[%emt 0:01:35]} Kxg7 {[%emt 0:00:19][%mdl 4096] Endgame KRB-KRN} 26. Rc7 {[%emt 0:00:48]} Rd8 {[%emt 0:00:14] Strongly threatening ...Rd1+.} 27. g3 $2 {[%emt 0:01:22]} (27. Ng4 $17 h5 28. Ne3) 27... Bc6 {[%emt 0:00:35] aiming for ...Rd1+.} 28. Rxe7+ {[%emt 0:02:24]} Kg8 $2 {[%emt 0:00:24]} (28... Kf6 $19 {has better winning chances.} 29. Rc7 (29. Rxh7 $2 {is the wrong capture.} Rd1+ 30. Nf1 Bb5 $19) 29... Rd1+ 30. Kg2 e3+ 31. Rxc6+ bxc6 32. Ng4+ Ke6 33. Nxe3 Rd2) 29. b3 $2 {[%emt 0:03:57]} (29. Kf1 $17 {was forced.}) 29... Rd1+ {[%emt 0:00:16]} 30. Nf1 $2 {[%emt 0:00:55]} (30. Kg2) 30... Bb5 $19 {[%emt 0:00:10]} 31. Rxb7 {[%emt 0:05:04]} Rxf1+ {[%emt 0:00:33] KRB-KR} 32. Kh2 {[%emt 0:00:30]} (32. Kg2 $142 Ra1 33. a4) 32... Rxf2+ {[%emt 0:00:19]} 33. Kg1 {[%emt 0:00:50]} Rf3 {[%emt 0:01:01]} 34. Kg2 {[%emt 0:01:36] [#]} e3 $1 {[%emt 0:00:09]} 35. Kxf3 {[%emt 0:01:02]} Bc6+ {[%emt 0:00:40]} 36. Kxe3 {[%emt 0:00:18]} Bxb7 {[%emt 0:00:08] KB-KP} 37. Kd4 {[%emt 0:00:17]} Bg2 {[%emt 0:00:24][%cal Og8f7] ( -> ...Kf7!)} 38. h4 {[%emt 0:00:30]} Bf1 {[%emt 0:00:25]} 39. Kc5 {[%emt 0:00:54]} Kf7 {[%emt 0:00:10]} (39... Kg7 $142 40. Kd4 Kh6) 40. Kb6 {[%emt 0:00:38]} Kf6 {[%emt 0:00:06] Black mates.} 41. a4 {[%emt 0:30:36]} h5 {[%emt 0:30:07]} 42. b4 {[%emt 0:01:21]} Kf5 {[%emt 0:00:10]} 43. b5 {[%emt 0:00:44] [#]} Bxb5 $1 {[%emt 0:00:13][%mdl 512]} 44. axb5 {[%emt 0:00:29]} axb5 {[%emt 0:00:06]} 45. Kxb5 {[%emt 0:00:11] KPP-KPP} Kg4 {[%emt 0:00:08]} 46. Kc4 {[%emt 0:00:49]} Kxg3 {[%emt 0:00:27]} 47. Kd3 {[%emt 0:00:33]} Kxh4 {[%emt 0:00:19] KP-KP} 48. Ke2 {[%emt 0:00:26]} Kh3 {[%emt 0:00:12]} 49. Kf1 {[%emt 0:01:46]} Kh2 {[%emt 0:00:07]} 50. Kf2 {[%emt 0:00:20]} g5 {[%emt 0:00:05]} 51. Kf1 {[%emt 0:00:35]} g4 {[%emt 0:00:11]} 52. Kf2 {[%emt 0:00:48]} g3+ {[%emt 0:00:04]} 53. Kf1 {[%emt 0:00:53]} g2+ {[%emt 0:00:18]} 54. Kf2 {[%emt 0:00:42]} g1=Q+ {[%emt 0:00:09]} 55. Kf3 {[%emt 0:00:12]} Qg3+ {[%emt 0:00:15]} 56. Ke4 {[%emt 0:00:11]} Kg2 {[%emt 0:00:12] Weighted Error Value: White=1.22/Black=0.79} 0-1